Directorate,Merchant Name,Merchant Code Description,Transaction Date,Transaction Amount,Final Expense Description
Directorate for Agriculture & Rural Economy,Arnold Clark Car & Van,Automobile rental agency - not elsewhere classified,06/06/2017,"1,693.78",Vehicle hire
Directorate for Agriculture & Rural Economy,Banner Group LTD,"Office, school supply & stationery stores",22/06/2017,647.85,IT consumables
Directorate for Agriculture & Rural Economy,Banner Group LTD,"Office, school supply & stationery stores",09/06/2017,578.81,IT consumables
Directorate for Agriculture & Rural Economy,Banner Group LTD,"Office, school supply & stationery stores",26/06/2017,510.41,IT consumables
Directorate for Agriculture & Rural Economy,Enterprise,Enterprise rent-a-car,09/06/2017,588,Vehicle hire
Directorate for Agriculture & Rural Economy,Enterprise,Enterprise rent-a-car,06/06/2017,588,Vehicle hire
Directorate for Agriculture & Rural Economy,Enterprise,Enterprise rent-a-car,20/06/2017,588,Vehicle hire
Directorate for Agriculture & Rural Economy,Enterprise,Enterprise rent-a-car,26/06/2017,588,Vehicle hire
Directorate for Agriculture & Rural Economy,Ilasco LTD,Childrens and infant's wear stores,01/06/2017,530.96,Personal Protective Equipment - clothing
Directorate for Agriculture & Rural Economy,Panasonic MA,"Computer programming, data processing, integrated systems design services",14/06/2017,"1,064.90",Specialist equipment - GPS accessories
Directorate for Agriculture & Rural Economy,Sweetcow LTD,"Computers, computer peripheral equipment & software",02/06/2017,"4,367.39",IT equipment
Directorate for Agriculture & Rural Economy,Irm UK Strategic,"Consulting, management & public relations services",21/06/2017,"3,091.50",External conference - fees
Directorate for Agriculture & Rural Economy,Amazon EU,Direct marketing - other direct marketers/not elsewhere classified,01/06/2017,649.36,Photographic consumables
Directorate for Agriculture & Rural Economy,Bedifol GMBH,Miscellaneous & specialty retail stores,19/06/2017,584.28,Specialist equipment - GPS accessories
Directorate for Chief Medical Officer,Banner Group LTD,"Office, school supply & stationery stores",09/06/2017,680.77,IT consumables
Directorate for Chief Medical Officer,Sodexo LTD,"Eating places, restaurants",26/06/2017,815.18,Catering
Directorate for Communications & Ministerial Support,Lyreco UK LTD,"Office, school supply & stationery stores",01/06/2017,507.6,Stationery
Directorate for Communications & Ministerial Support,Lyreco UK LTD,"Office, school supply & stationery stores",21/06/2017,679.06,Stationery
Directorate for Communications & Ministerial Support,Rolec services LTD,Electrical parts & equipment,31/05/2017,"1,800.00",Building equipment
Directorate for Communications & Ministerial Support,WWW.VIKING-DIRECT.CO.U,"Stationery, office supplies, printing & writing paper",09/06/2017,659.88,Building equipment
Directorate for Digital,Aberdeen & Grampian,Attorneys & legal services,20/06/2017,888,External event - fees
Directorate for Digital,Amazon Web Services,Business services - not elsewhere classified,03/06/2017,"2,684.67",Mygov.scot - web service - service charge
Directorate for Digital,Harvest,"Computers, computer peripheral equipment & software",27/06/2017,865.25,IT - specialist software
Directorate for Digital,WWW.TURINGFESTIVALCOM,"Consulting, management & public relations services",08/06/2017,"1,460.16",External conference - fees
Directorate for Digital,QD Events LTD,Professional services - not elsewhere classified,28/06/2017,"1,440.00",External conference - fees
Directorate for Energy & Climate Change,INCISIVEMEDIA.COM,Miscellaneous publishing & printing,07/06/2017,702,Professional subscription - fees
Directorate for Environment & Forestry,Sodexo LTD,"Eating places, restaurants",07/06/2017,872.64,Catering
Directorate for Environment & Forestry,Favershamho,Miscellaneous publishing & printing,19/06/2017,758.4,External conference - fees
Directorate for External Affairs,"Agile Printing CO, INC","Stationery, office supplies, printing & writing paper",14/06/2017,572.2,Publication - marketing - fees
"Directorate for Fair Work, Employability & Skills",Learning & Work Institute,"Organizations, charitable & social services",08/06/2017,564,External conference - fees
"Directorate for Fair Work, Employability & Skills",Learning & Work Institute,"Organizations, charitable & social services",08/06/2017,564,External conference - fees
Directorate for Health Performance & Delivery,BMJ Publishing Group,Direct marketing - other direct marketers/not elsewhere classified,07/06/2017,"1,137.42",External conference - fees
Directorate for Housing Regeneration,Sodexo LTD,"Eating places, restaurants",13/06/2017,506.82,Catering
Directorate for Legal Services,Elior Head Office,Caterers,12/06/2017,"2,250.00",External event - venue hire
Directorate for Legal Services,Bankton House Hotel,"Lodging, hotels, motels, resorts - not elsewhere classified",28/06/2017,"1,128.00",External event - venue hire
Directorate for Local Government & Communities,Lyreco UK LTD,"Office, school supply & stationery stores",14/06/2017,"1,116.44",Stationery
Directorate for Local Government & Communities,Sodexo LTD,"Eating places, restaurants",21/06/2017,719.28,Catering
Directorate for Marine Scotland,City Electrical FA,Building materials & lumber stores,19/06/2017,588.07,Vessel equipment
Directorate for Marine Scotland,TDC (Aberdeen) LTD,"Heating, plumbing, air conditioning contractors",12/06/2017,543.84,Vessel engineering repairs
Directorate for Marine Scotland,TDC (Aberdeen) LTD,"Heating, plumbing, air conditioning contractors",19/06/2017,"1,297.80",Vessel equipment
Directorate for Marine Scotland,WWW.LEDISON-LED-LIGHTS,Household appliance stores,05/06/2017,664.8,Vessel engineering equipment
Directorate for Marine Scotland,WWW.LEDISON-LED-LIGHTS,Household appliance stores,20/06/2017,562.8,Vessel engineering equipment
Directorate for Marine Scotland,Airedale int air,Industrial supplier - not elsewhere classified,13/06/2017,618.7,Vessel equipment
Directorate for Marine Scotland,Alibob at Cairn Omohr,"Miscellaneous food store - convenience, market, specialty, vending machines",02/06/2017,700,Accommodation - scientific field work
Directorate for Marine Scotland,Alibob at Cairn Omohr,"Miscellaneous food store - convenience, market, specialty, vending machines",02/06/2017,700,Accommodation - scientific field work
Directorate for Marine Scotland,Ocean Scientific International,Miscellaneous & specialty retail stores,02/06/2017,685.2,Specialist laboratory equipment
Directorate for Marine Scotland,Aberdeen Journals LTD,"Organizations, membership - not elsewhere classified",01/06/2017,883.2,Publication - public advert - fees
Directorate for Marine Scotland,Glasgow Angling LTD,Sporting good stores,27/06/2017,634.94,Personal Protective Equipment - clothing
Directorate for Marine Scotland,WYNVR.CO.UK Holiday Accommodation,Travel agencies & tour operators,20/06/2017,597,Accommodation - scientific field work
Directorate for Marine Scotland,WYNVR.CO.UK Holiday Accommodation,Travel agencies & tour operators,21/06/2017,"1,563.00",Accommodation - scientific field work
Directorate for Marine Scotland,WYNVR.CO.UK Holiday Accommodation,Travel agencies & tour operators,21/06/2017,667,Accommodation - scientific field work
Directorate for Marine Scotland,WYNVR.CO.UK Holiday Accommodation,Travel agencies & tour operators,02/06/2017,"1,541.00",Accommodation - scientific field work
Directorate for Marine Scotland,WYNVR.CO.UK Holiday Accommodation,Travel agencies & tour operators,02/06/2017,505,Accommodation - scientific field work
Office of the Chief Executive NHS Scotland,Argos Retail Group,Discount stores,13/06/2017,535.91,IT equipment
Office of the Chief Executive NHS Scotland,Argos Retail Group,Discount stores,13/06/2017,999.9,IT equipment
Scottish Procurement & Commercial Directorate,University of Nottingham,"Colleges, universities, professional schools & junior colleges",30/05/2017,"1,190.00",External conference - fees
Scottish Procurement & Commercial Directorate,PMO Conference UK,Professional services - not elsewhere classified,07/06/2017,600,External conference - fees
Scottish Procurement & Commercial Directorate,Edinburgh Military Tattoo,"Theatrical producers (excluding motion pictures), ticket agency",01/06/2017,540,External event - venue hire
